[Event "GrandPrix_29.05"]
[Site "Chess.com"]
[Date "2020.05.29"]
[Round "6"]
[White "Carpe7Diem"]
[Black "Zadar321"]
[Result "1-0"]
[WhiteElo "2095"]
[BlackElo "1920"]
[TimeControl "600+2"]
[EndTime "11:58:04 PDT"]
[Termination "Carpe7Diem won by checkmate"]

1. c4 {[%clk 0:10:01.9]} 1... Nf6 {[%clk 0:10:00.3]} 2. Nc3 {[%clk 0:10:02.1]}
2... Nc6 {[%clk 0:10:00.4]} 3. e4 {[%clk 0:10:00.3]} 3... e5 {[%clk 0:10:01.1]}
4. Nf3 {[%clk 0:10:00.9]} 4... Bc5 {[%clk 0:10:01.2]} 5. Be2 {[%clk 0:10:01.3]}
5... d6 {[%clk 0:10:02]} 6. h3 {[%clk 0:10:01.6]} 6... a6 {[%clk 0:10:03.1]} 7.
O-O {[%clk 0:10:02.2]} 7... O-O {[%clk 0:10:04.1]} 8. d3 {[%clk 0:10:03.2]} 8...
Ne7 {[%clk 0:10:03.8]} 9. Be3 {[%clk 0:09:57.9]} 9... Ng6 {[%clk 0:10:04.7]} 10.
d4 {[%clk 0:09:57]} 10... exd4 {[%clk 0:10:04.6]} 11. Nxd4 {[%clk 0:09:52.4]}
11... Re8 {[%clk 0:10:04.6]} 12. Qc2 {[%clk 0:09:08.3]} 12... c6 {[%clk
0:09:55.9]} 13. Rad1 {[%clk 0:08:54.2]} 13... Qe7 {[%clk 0:09:56.2]} 14. Nf5
{[%clk 0:08:19.2]} 14... Bxf5 {[%clk 0:09:52.4]} 15. exf5 {[%clk 0:08:20.4]}
15... Bxe3 {[%clk 0:09:42.3]} 16. fxg6 {[%clk 0:08:19.7]} 16... Ba7 {[%clk
0:09:42.2]} 17. gxf7+ {[%clk 0:07:24.8]} 17... Kxf7 {[%clk 0:09:42.5]} 18. Rfe1
{[%clk 0:06:43.8]} 18... Kg8 {[%clk 0:09:39]} 19. Qd2 {[%clk 0:06:32.5]} 19...
Qf7 {[%clk 0:09:22.4]} 20. Bf3 {[%clk 0:06:02.6]} 20... Rad8 {[%clk 0:09:14.6]}
21. b3 {[%clk 0:06:00.3]} 21... Bc5 {[%clk 0:08:47]} 22. Na4 {[%clk 0:05:33.2]}
22... Ba7 {[%clk 0:08:45.2]} 23. Nc3 {[%clk 0:05:23.8]} 23... Rxe1+ {[%clk
0:08:45.3]} 24. Rxe1 {[%clk 0:05:19.3]} 24... d5 {[%clk 0:08:46.4]} 25. cxd5
{[%clk 0:04:58.1]} 25... cxd5 {[%clk 0:08:46.8]} 26. Rd1 {[%clk 0:03:48.6]}
26... d4 {[%clk 0:08:47.2]} 27. Ne4 {[%clk 0:03:47.1]} 27... Nd5 {[%clk
0:08:31.8]} 28. Ng5 {[%clk 0:03:36.3]} 28... Qf6 {[%clk 0:08:19.4]} 29. Bxd5+
{[%clk 0:03:31.6]} 29... Rxd5 {[%clk 0:08:18.8]} 30. Ne4 {[%clk 0:03:27.4]}
30... Qe5 {[%clk 0:08:15.1]} 31. Qd3 {[%clk 0:03:26.4]} 31... h6 {[%clk
0:08:06.3]} 32. g3 {[%clk 0:03:20]} 32... Rd8 {[%clk 0:08:04.2]} 33. Kg2 {[%clk
0:03:19.1]} 33... Kh8 {[%clk 0:08:04.2]} 34. Rd2 {[%clk 0:03:08.9]} 34... Re8
{[%clk 0:08:04.6]} 35. Re2 {[%clk 0:03:03.6]} 35... Qd5 {[%clk 0:07:58.1]} 36.
f3 {[%clk 0:03:02.8]} 36... Rc8 {[%clk 0:07:54.3]} 37. h4 {[%clk 0:02:53.8]}
37... Qc6 {[%clk 0:07:47.1]} 38. Nf2 {[%clk 0:02:29.8]} 38... Qc3 {[%clk
0:07:33.1]} 39. Qf5 {[%clk 0:02:19.9]} 39... Qc5 {[%clk 0:07:08.6]} 40. Qf7
{[%clk 0:01:55.9]} 40... Qc6 {[%clk 0:06:43.3]} 41. Re7 {[%clk 0:01:40.7]} 41...
Rg8 {[%clk 0:06:41.8]} 42. Rxb7 {[%clk 0:01:41.8]} 42... Bb8 {[%clk 0:06:41.5]}
43. Re7 {[%clk 0:01:09.5]} 43... Qd6 {[%clk 0:06:31.5]} 44. Ne4 {[%clk
0:01:09.6]} 44... Qc6 {[%clk 0:06:31.9]} 45. Re6 {[%clk 0:00:47.3]} 45... Qc2+
{[%clk 0:06:31.5]} 46. Kh3 {[%clk 0:00:48.8]} 46... Qd1 {[%clk 0:06:30.4]} 47.
Re8 {[%clk 0:00:26.1]} 47... Qf1+ {[%clk 0:05:51.4]} 48. Kg4 {[%clk 0:00:25.6]}
48... Rxe8 {[%clk 0:05:51]} 49. Qxe8+ {[%clk 0:00:26]} 49... Kh7 {[%clk
0:05:52.5]} 50. Qxb8 {[%clk 0:00:18.4]} 50... h5+ {[%clk 0:05:53.2]} 51. Kf4
{[%clk 0:00:17.4]} 51... d3 {[%clk 0:05:52.8]} 52. Qe5 {[%clk 0:00:12.9]} 52...
Qe2 {[%clk 0:05:51.8]} 53. Qxh5+ {[%clk 0:00:12.9]} 53... Kg8 {[%clk 0:05:52.5]}
54. Qe8+ {[%clk 0:00:14]} 54... Kh7 {[%clk 0:05:53.5]} 55. Ng5+ {[%clk
0:00:13.8]} 55... Kh6 {[%clk 0:05:53.9]} 56. Qh8+ {[%clk 0:00:07.7]} 56... Kg6
{[%clk 0:05:55.1]} 57. h5+ {[%clk 0:00:06.5]} 57... Kf6 {[%clk 0:05:56.3]} 58.
Qf8# {[%clk 0:00:06.4]} 1-0

[Event "GrandPrix_29.05"]
[Site "Chess.com"]
[Date "2020.05.29"]
[Round "6"]
[White "chess_big_master"]
[Black "fujiwara_hoga"]
[Result "0-1"]
[WhiteElo "2006"]
[BlackElo "2118"]
[TimeControl "600+2"]
[EndTime "11:58:05 PDT"]
[Termination "fujiwara_hoga won by resignation"]

1. d4 {[%clk 0:10:01.9]} 1... d5 {[%clk 0:09:58]} 2. Nf3 {[%clk 0:10:02.9]} 2...
Nf6 {[%clk 0:09:57.6]} 3. c4 {[%clk 0:10:02.7]} 3... e6 {[%clk 0:09:55.1]} 4.
Nc3 {[%clk 0:10:03.3]} 4... Be7 {[%clk 0:09:54.2]} 5. Bg5 {[%clk 0:10:03.2]}
5... O-O {[%clk 0:09:53.4]} 6. e3 {[%clk 0:10:03.8]} 6... Nbd7 {[%clk
0:09:44.6]} 7. Qc2 {[%clk 0:10:02.3]} 7... dxc4 {[%clk 0:08:59.3]} 8. Bxc4
{[%clk 0:10:00.2]} 8... a6 {[%clk 0:08:59.5]} 9. a4 {[%clk 0:09:46.4]} 9... b6
{[%clk 0:08:51.7]} 10. e4 {[%clk 0:09:31]} 10... Bb7 {[%clk 0:08:41.8]} 11. Rd1
{[%clk 0:08:58.5]} 11... h6 {[%clk 0:08:15.2]} 12. Bh4 {[%clk 0:08:45.9]} 12...
Nh5 {[%clk 0:08:08.3]} 13. Bg3 {[%clk 0:08:10.1]} 13... Nxg3 {[%clk 0:07:52.9]}
14. hxg3 {[%clk 0:08:12]} 14... Nf6 {[%clk 0:07:03.5]} 15. e5 {[%clk 0:06:43.5]}
15... Nd5 {[%clk 0:06:48.7]} 16. Ne4 {[%clk 0:05:39.3]} 16... Nb4 {[%clk
0:06:42]} 17. Qe2 {[%clk 0:05:26.2]} 17... Bd5 {[%clk 0:05:39.9]} 18. Bxd5
{[%clk 0:04:50.7]} 18... Nxd5 {[%clk 0:05:38.2]} 19. Kf1 {[%clk 0:04:31.8]}
19... Qd7 {[%clk 0:05:31]} 20. b3 {[%clk 0:04:12.9]} 20... b5 {[%clk 0:05:26.4]}
21. a5 {[%clk 0:04:09.3]} 21... b4 {[%clk 0:05:26]} 22. Nfd2 {[%clk 0:03:40.7]}
22... Nc3 {[%clk 0:04:56.6]} 23. Nxc3 {[%clk 0:03:38.4]} 23... bxc3 {[%clk
0:04:58.5]} 24. Ne4 {[%clk 0:03:31.4]} 24... Rfb8 {[%clk 0:04:57.8]} 25. Nxc3
{[%clk 0:02:09.9]} 25... Rxb3 {[%clk 0:04:54.3]} 26. Ne4 {[%clk 0:02:07.4]}
26... Qb5 {[%clk 0:04:27.9]} 27. d5 {[%clk 0:00:59.3]} 27... exd5 {[%clk
0:04:05.5]} 28. Qxb5 {[%clk 0:00:48.6]} 28... axb5 {[%clk 0:04:03.6]} 29. Nd2
{[%clk 0:00:48.2]} 29... Rb2 {[%clk 0:03:58.2]} 30. Nf3 {[%clk 0:00:42.2]} 30...
Rxa5 {[%clk 0:03:49]} 31. Nd4 {[%clk 0:00:25.4]} 31... Raa2 {[%clk 0:03:35.7]}
0-1

[Event "GrandPrix_29.05"]
[Site "Chess.com"]
[Date "2020.05.29"]
[Round "6"]
[White "VMikhalevski"]
[Black "Grandelicious"]
[Result "1-0"]
[WhiteElo "2674"]
[BlackElo "2640"]
[TimeControl "600+2"]
[EndTime "11:58:12 PDT"]
[Termination "VMikhalevski won by resignation"]

1. d4 {[%clk 0:10:01.9]} 1... d5 {[%clk 0:10:01.4]} 2. c4 {[%clk 0:10:01.4]}
2... e6 {[%clk 0:10:03.1]} 3. Nf3 {[%clk 0:10:01.2]} 3... a6 {[%clk 0:10:04.4]}
4. cxd5 {[%clk 0:09:59.1]} 4... exd5 {[%clk 0:10:06.3]} 5. Nc3 {[%clk
0:09:59.9]} 5... h6 {[%clk 0:10:07.8]} 6. h3 {[%clk 0:09:52.3]} 6... Nf6 {[%clk
0:10:04.8]} 7. Bf4 {[%clk 0:09:52.4]} 7... Bd6 {[%clk 0:10:03.2]} 8. Bxd6 {[%clk
0:09:50.5]} 8... Qxd6 {[%clk 0:10:05.1]} 9. e3 {[%clk 0:09:49.8]} 9... Bf5
{[%clk 0:09:56.7]} 10. Bd3 {[%clk 0:09:27.5]} 10... Bxd3 {[%clk 0:09:56.8]} 11.
Qxd3 {[%clk 0:09:28.5]} 11... Nbd7 {[%clk 0:09:57.6]} 12. O-O {[%clk 0:09:22.6]}
12... O-O {[%clk 0:09:58.4]} 13. b4 {[%clk 0:09:16.3]} 13... c6 {[%clk 0:09:21]}
14. Rab1 {[%clk 0:09:06.2]} 14... b5 {[%clk 0:08:23.3]} 15. a4 {[%clk
0:08:14.9]} 15... Nb6 {[%clk 0:08:17.2]} 16. Ne5 {[%clk 0:06:21.5]} 16... Nfd7
{[%clk 0:07:46]} 17. a5 {[%clk 0:05:09.8]} 17... Nc4 {[%clk 0:07:46.3]} 18. Nxc4
{[%clk 0:05:09.8]} 18... bxc4 {[%clk 0:07:28.4]} 19. Qd2 {[%clk 0:05:09.2]}
19... Rfb8 {[%clk 0:06:30]} 20. Na4 {[%clk 0:05:07.5]} 20... Rb5 {[%clk
0:06:27]} 21. Nc5 {[%clk 0:04:59.7]} 21... Nxc5 {[%clk 0:06:11.7]} 22. bxc5
{[%clk 0:04:59]} 22... Qb8 {[%clk 0:05:51.9]} 23. Qc2 {[%clk 0:03:06.4]} 23...
Qc7 {[%clk 0:05:43.5]} 24. e4 {[%clk 0:03:04.8]} 24... Qxa5 {[%clk 0:04:42.7]}
25. exd5 {[%clk 0:03:04.4]} 25... cxd5 {[%clk 0:04:44.6]} 26. Qf5 {[%clk
0:03:04.8]} 26... Rd8 {[%clk 0:02:52.2]} 27. Ra1 {[%clk 0:02:58.5]} 27... Qc3
{[%clk 0:02:50.2]} 28. c6 {[%clk 0:02:56.9]} 1-0

[Event "GrandPrix_29.05"]
[Site "Chess.com"]
[Date "2020.05.29"]
[Round "6"]
[White "StephenDedalus83"]
[Black "PotapovaM"]
[Result "0-1"]
[WhiteElo "2025"]
[BlackElo "2187"]
[TimeControl "600+2"]
[EndTime "11:58:32 PDT"]
[Termination "PotapovaM won by resignation"]

1. e4 {[%clk 0:10:01.9]} 1... c5 {[%clk 0:10:00.5]} 2. Nf3 {[%clk 0:10:01.8]}
2... d6 {[%clk 0:10:01.7]} 3. d4 {[%clk 0:10:01.9]} 3... cxd4 {[%clk 0:10:03.6]}
4. Nxd4 {[%clk 0:10:03]} 4... Nf6 {[%clk 0:09:56.8]} 5. Nc3 {[%clk 0:10:03.7]}
5... a6 {[%clk 0:09:57.6]} 6. h3 {[%clk 0:10:02.8]} 6... e5 {[%clk 0:09:56.6]}
7. Nf3 {[%clk 0:10:02.7]} 7... Qc7 {[%clk 0:08:58.8]} 8. Bg5 {[%clk 0:09:54.2]}
8... Nbd7 {[%clk 0:08:42.7]} 9. a4 {[%clk 0:09:54.4]} 9... b6 {[%clk 0:08:39.3]}
10. Nd2 {[%clk 0:09:51.1]} 10... Bb7 {[%clk 0:08:26.6]} 11. Bc4 {[%clk
0:09:42.7]} 11... Be7 {[%clk 0:08:20.3]} 12. Qe2 {[%clk 0:09:37.1]} 12... O-O
{[%clk 0:08:18.7]} 13. O-O {[%clk 0:09:36.9]} 13... h6 {[%clk 0:07:46.3]} 14.
Bxf6 {[%clk 0:09:08.5]} 14... Nxf6 {[%clk 0:07:46.2]} 15. Rfd1 {[%clk
0:09:03.6]} 15... Rfc8 {[%clk 0:06:34.7]} 16. Bb3 {[%clk 0:08:33.6]} 16... Bc6
{[%clk 0:05:54.5]} 17. Nf1 {[%clk 0:08:27]} 17... Qb7 {[%clk 0:03:25.3]} 18. Nd5
{[%clk 0:08:19.9]} 18... Bxd5 {[%clk 0:02:41.3]} 19. Bxd5 {[%clk 0:08:19.3]}
19... Nxd5 {[%clk 0:02:42.5]} 20. Rxd5 {[%clk 0:08:20.5]} 20... f5 {[%clk
0:02:32.9]} 21. Rad1 {[%clk 0:08:14.5]} 21... f4 {[%clk 0:02:30.3]} 22. b3
{[%clk 0:08:02.9]} 22... Qc6 {[%clk 0:02:16.9]} 23. c4 {[%clk 0:08:03.4]} 23...
Rab8 {[%clk 0:02:00.5]} 24. Nh2 {[%clk 0:08:00.9]} 24... b5 {[%clk 0:01:48.6]}
25. axb5 {[%clk 0:07:59.9]} 25... axb5 {[%clk 0:01:49.5]} 26. cxb5 {[%clk
0:07:59.5]} 26... Qc3 {[%clk 0:01:42.4]} 27. Qf3 {[%clk 0:07:05.1]} 27... Qb2
{[%clk 0:01:29.3]} 28. Ng4 {[%clk 0:07:01.1]} 28... Rc3 {[%clk 0:01:24.7]} 29.
R1d3 {[%clk 0:06:27.4]} 29... Rc1+ {[%clk 0:01:20.9]} 30. Kh2 {[%clk 0:06:22.1]}
30... h5 {[%clk 0:01:04.4]} 31. Nxe5 {[%clk 0:06:22.9]} 31... dxe5 {[%clk
0:01:00.5]} 32. Rd2 {[%clk 0:06:14.3]} 32... Qb1 {[%clk 0:00:57]} 33. Rd1 {[%clk
0:06:14.9]} 33... Bf6 {[%clk 0:00:51.2]} 34. Qxh5 {[%clk 0:06:09]} 34... Rxd1
{[%clk 0:00:40]} 35. Qxd1 {[%clk 0:06:04.1]} 35... Qxd1 {[%clk 0:00:35.4]} 36.
Rxd1 {[%clk 0:06:06]} 36... Rxb5 {[%clk 0:00:36.9]} 37. Rd3 {[%clk 0:06:07.5]}
37... Kf7 {[%clk 0:00:37]} 38. g3 {[%clk 0:06:06.6]} 38... Bg5 {[%clk 0:00:37]}
39. Kg2 {[%clk 0:06:07]} 39... fxg3 {[%clk 0:00:37.2]} 40. fxg3 {[%clk
0:06:07.3]} 40... Ke6 {[%clk 0:00:38]} 41. Rc3 {[%clk 0:06:07.4]} 41... Be7
{[%clk 0:00:28.6]} 42. Kf3 {[%clk 0:06:07.7]} 42... Bc5 {[%clk 0:00:26.1]} 43.
Kg4 {[%clk 0:06:07.6]} 43... Bd4 {[%clk 0:00:24.6]} 44. Rc6+ {[%clk 0:06:07.7]}
44... Kf7 {[%clk 0:00:20.4]} 45. Kf5 {[%clk 0:06:08.4]} 45... Rxb3 {[%clk
0:00:17.5]} 46. Rc7+ {[%clk 0:06:07.3]} 46... Kf8 {[%clk 0:00:15.3]} 47. Rc8+
{[%clk 0:06:04.6]} 47... Kf7 {[%clk 0:00:15.4]} 48. Rc7+ {[%clk 0:06:05.6]}
48... Kg8 {[%clk 0:00:16.7]} 49. g4 {[%clk 0:06:05.8]} 49... Rxh3 {[%clk
0:00:16]} 50. g5 {[%clk 0:06:06.8]} 50... Kh7 {[%clk 0:00:10.4]} 51. Rd7 {[%clk
0:05:37.2]} 51... Rh4 {[%clk 0:00:07.8]} 52. Rd6 {[%clk 0:05:28.5]} 52... Rf4+
{[%clk 0:00:07.9]} 53. Ke6 {[%clk 0:05:29.6]} 53... Rg4 {[%clk 0:00:06.8]} 54.
Kf5 {[%clk 0:05:29.6]} 54... Rf4+ {[%clk 0:00:08.1]} 55. Ke6 {[%clk 0:05:30.6]}
55... Kg6 {[%clk 0:00:07.9]} 56. Kd5+ {[%clk 0:05:27.9]} 56... Kxg5 {[%clk
0:00:08.8]} 57. Rd8 {[%clk 0:05:28.9]} 57... g6 {[%clk 0:00:09.9]} 58. Rg8
{[%clk 0:05:29.9]} 58... Rf6 {[%clk 0:00:10.3]} 59. Rg7 {[%clk 0:05:30.6]} 59...
Kf4 {[%clk 0:00:10.8]} 60. Rg8 {[%clk 0:05:31.7]} 60... g5 {[%clk 0:00:12]} 61.
Rg7 {[%clk 0:05:32.5]} 61... g4 {[%clk 0:00:13.1]} 0-1

[Event "GrandPrix_29.05"]
[Site "Chess.com"]
[Date "2020.05.29"]
[Round "6"]
[White "aleksandrovaleksei"]
[Black "Khvicha_Supatashvili"]
[Result "1-0"]
[WhiteElo "2361"]
[BlackElo "2114"]
[TimeControl "600+2"]
[EndTime "11:58:34 PDT"]
[Termination "aleksandrovaleksei won by resignation"]

1. d4 {[%clk 0:09:38.7]} 1... Nf6 {[%clk 0:09:59.4]} 2. c4 {[%clk 0:09:39.5]}
2... e6 {[%clk 0:10:00.8]} 3. Nc3 {[%clk 0:09:40.6]} 3... Bb4 {[%clk 0:10:01.9]}
4. e3 {[%clk 0:09:41.3]} 4... O-O {[%clk 0:10:00.8]} 5. Bd3 {[%clk 0:09:42.3]}
5... d5 {[%clk 0:10:01.5]} 6. cxd5 {[%clk 0:09:43.4]} 6... exd5 {[%clk
0:10:02.1]} 7. Ne2 {[%clk 0:09:44.4]} 7... Re8 {[%clk 0:09:54.6]} 8. O-O {[%clk
0:09:39]} 8... b6 {[%clk 0:09:45.8]} 9. Bd2 {[%clk 0:09:36.1]} 9... Bb7 {[%clk
0:09:39.5]} 10. Qc2 {[%clk 0:09:31.7]} 10... Bf8 {[%clk 0:09:13.7]} 11. Rad1
{[%clk 0:09:28.6]} 11... Nbd7 {[%clk 0:08:55.3]} 12. Bc1 {[%clk 0:09:25.6]}
12... Rc8 {[%clk 0:08:44.8]} 13. a3 {[%clk 0:09:14.6]} 13... g6 {[%clk
0:08:40.2]} 14. b4 {[%clk 0:09:05.9]} 14... a6 {[%clk 0:08:33.5]} 15. Qb3 {[%clk
0:09:02.4]} 15... b5 {[%clk 0:08:21.1]} 16. a4 {[%clk 0:08:58.1]} 16... c6
{[%clk 0:08:21.6]} 17. f3 {[%clk 0:08:53.6]} 17... Qe7 {[%clk 0:08:06.5]} 18.
Na2 {[%clk 0:08:43.5]} 18... Nb6 {[%clk 0:07:56.5]} 19. a5 {[%clk 0:08:32.2]}
19... Nc4 {[%clk 0:07:56.3]} 20. Ng3 {[%clk 0:08:23.1]} 20... h5 {[%clk
0:07:22.3]} 21. Rfe1 {[%clk 0:08:22]} 21... Bg7 {[%clk 0:06:54.5]} 22. e4 {[%clk
0:07:41.4]} 22... dxe4 {[%clk 0:06:37.7]} 23. fxe4 {[%clk 0:07:41.9]} 23... Ng4
{[%clk 0:06:37.4]} 24. Bxc4 {[%clk 0:07:39]} 24... bxc4 {[%clk 0:06:36.5]} 25.
Qxc4 {[%clk 0:07:39.9]} 25... Qh4 {[%clk 0:06:29.9]} 26. h3 {[%clk 0:07:22.4]}
26... Qxg3 {[%clk 0:06:11.2]} 27. hxg4 {[%clk 0:07:23.4]} 27... Qxg4 {[%clk
0:06:00.5]} 28. Nc3 {[%clk 0:07:17]} 28... Rcd8 {[%clk 0:05:59.7]} 29. Be3
{[%clk 0:06:49.9]} 29... h4 {[%clk 0:05:39]} 30. Qe2 {[%clk 0:06:41.1]} 30...
Bc8 {[%clk 0:05:31.4]} 31. Qxg4 {[%clk 0:06:31.3]} 31... Bxg4 {[%clk 0:05:30.7]}
32. Rd2 {[%clk 0:06:32.7]} 32... Rb8 {[%clk 0:05:14.7]} 33. Rb1 {[%clk 0:06:18]}
33... Bf5 {[%clk 0:03:49.6]} 34. Bf4 {[%clk 0:06:14.1]} 34... Rbd8 {[%clk
0:03:22.2]} 35. exf5 {[%clk 0:06:14.6]} 35... Bxd4+ {[%clk 0:03:08.7]} 36. Rxd4
{[%clk 0:06:14.7]} 36... Rxd4 {[%clk 0:03:09.9]} 37. Bc7 {[%clk 0:06:02.6]}
37... Rc4 {[%clk 0:02:53.9]} 38. Na4 {[%clk 0:05:56.3]} 38... Re2 {[%clk
0:02:53.9]} 39. fxg6 {[%clk 0:05:55.2]} 39... Rcc2 {[%clk 0:02:23.7]} 40. gxf7+
{[%clk 0:05:54.3]} 40... Kxf7 {[%clk 0:02:24.5]} 41. Nc5 {[%clk 0:05:54.6]}
41... Rxg2+ {[%clk 0:02:24.2]} 42. Kh1 {[%clk 0:05:55.8]} 42... h3 {[%clk
0:02:07]} 43. Nxa6 {[%clk 0:05:53.1]} 43... Ra2 {[%clk 0:02:03.1]} 44. Nc5
{[%clk 0:05:48.8]} 44... Ra3 {[%clk 0:01:15]} 45. a6 {[%clk 0:05:42.4]} 45...
Rga2 {[%clk 0:01:13.6]} 46. Bb8 {[%clk 0:05:36.3]} 46... Kg6 {[%clk 0:01:00.1]}
47. a7 {[%clk 0:05:36]} 47... Kg5 {[%clk 0:01:00.6]} 48. Nb3 {[%clk 0:05:12.6]}
48... Kg4 {[%clk 0:00:49.2]} 49. Rg1+ {[%clk 0:05:08.5]} 49... Kf3 {[%clk
0:00:16.7]} 50. Na5 {[%clk 0:05:03.6]} 50... h2 {[%clk 0:00:10.5]} 51. Rc1
{[%clk 0:04:57]} 51... Rc2 {[%clk 0:00:06.5]} 52. Rxc2 {[%clk 0:04:55.4]} 1-0

[Event "GrandPrix_29.05"]
[Site "Chess.com"]
[Date "2020.05.29"]
[Round "6"]
[White "SpasKozhuharov"]
[Black "MilanovicDan"]
[Result "0-1"]
[WhiteElo "2232"]
[BlackElo "2455"]
[TimeControl "600+2"]
[EndTime "11:58:35 PDT"]
[Termination "MilanovicDan won by checkmate"]

1. c4 {[%clk 0:10:00.1]} 1... c5 {[%clk 0:09:50.2]} 2. Nf3 {[%clk 0:09:59.7]}
2... Nf6 {[%clk 0:09:47.2]} 3. d4 {[%clk 0:10:00.9]} 3... cxd4 {[%clk
0:09:47.3]} 4. Nxd4 {[%clk 0:10:02.8]} 4... b6 {[%clk 0:09:48]} 5. Nc3 {[%clk
0:10:03]} 5... Bb7 {[%clk 0:09:48.5]} 6. f3 {[%clk 0:10:04.5]} 6... a6 {[%clk
0:09:48.5]} 7. e4 {[%clk 0:10:04.8]} 7... d6 {[%clk 0:09:49.6]} 8. Be2 {[%clk
0:10:05.4]} 8... e6 {[%clk 0:09:50.7]} 9. Be3 {[%clk 0:10:06.8]} 9... Be7 {[%clk
0:09:51.9]} 10. O-O {[%clk 0:10:08.2]} 10... O-O {[%clk 0:09:53]} 11. Qd2 {[%clk
0:10:09.7]} 11... Qc7 {[%clk 0:09:54.1]} 12. Rfc1 {[%clk 0:10:06.6]} 12... Rc8
{[%clk 0:09:53.5]} 13. a4 {[%clk 0:10:07.8]} 13... Qd8 {[%clk 0:09:54]} 14. a5
{[%clk 0:09:51.7]} 14... bxa5 {[%clk 0:09:54]} 15. Nb3 {[%clk 0:09:52.7]} 15...
Nc6 {[%clk 0:09:53.7]} 16. Na4 {[%clk 0:09:52.6]} 16... Nd7 {[%clk 0:09:49.3]}
17. Bf1 {[%clk 0:09:39.3]} 17... Rab8 {[%clk 0:09:28.3]} 18. Qf2 {[%clk
0:09:28.1]} 18... Ba8 {[%clk 0:09:10.5]} 19. Nd4 {[%clk 0:09:10.2]} 19... Nce5
{[%clk 0:08:44.3]} 20. h3 {[%clk 0:08:48.7]} 20... Bh4 {[%clk 0:08:35.7]} 21. g3
{[%clk 0:08:46]} 21... Bf6 {[%clk 0:08:33]} 22. f4 {[%clk 0:08:23.1]} 22... Nc6
{[%clk 0:08:26]} 23. Bg2 {[%clk 0:07:58.4]} 23... Nb4 {[%clk 0:07:14.7]} 24. Qe2
{[%clk 0:06:36.3]} 24... Qc7 {[%clk 0:06:54.5]} 25. b3 {[%clk 0:06:13.7]} 25...
Nc5 {[%clk 0:06:24.2]} 26. e5 {[%clk 0:02:31.1]} 26... dxe5 {[%clk 0:05:39.4]}
27. fxe5 {[%clk 0:02:33]} 27... Qxe5 {[%clk 0:05:31.4]} 28. Nxc5 {[%clk
0:02:24]} 28... Bxg2 {[%clk 0:04:09.8]} 29. Nd7 {[%clk 0:01:58.8]} 29... Qe4
{[%clk 0:03:41.6]} 30. Nxf6+ {[%clk 0:01:56]} 30... gxf6 {[%clk 0:03:41.5]} 31.
Rxa5 {[%clk 0:01:17.8]} 31... Bxh3 {[%clk 0:03:26.3]} 32. Qf2 {[%clk 0:00:17.5]}
32... Nd3 {[%clk 0:03:23]} 33. Qxf6 {[%clk 0:00:12.4]} 33... Qg2# {[%clk
0:03:23.3]} 0-1

[Event "GrandPrix_29.05"]
[Site "Chess.com"]
[Date "2020.05.29"]
[Round "6"]
[White "DaVinci81"]
[Black "grunbergmihai"]
[Result "0-1"]
[WhiteElo "2440"]
[BlackElo "2511"]
[TimeControl "600+2"]
[EndTime "11:58:50 PDT"]
[Termination "grunbergmihai won by resignation"]

1. e4 {[%clk 0:10:01.9]} 1... Nf6 {[%clk 0:09:53.5]} 2. e5 {[%clk 0:10:00.7]}
2... Nd5 {[%clk 0:09:54.2]} 3. d4 {[%clk 0:10:01.8]} 3... d6 {[%clk 0:09:55.2]}
4. Nf3 {[%clk 0:10:02.8]} 4... dxe5 {[%clk 0:09:55.8]} 5. Nxe5 {[%clk
0:10:03.3]} 5... c6 {[%clk 0:09:57]} 6. c3 {[%clk 0:09:56.5]} 6... Bf5 {[%clk
0:09:44.5]} 7. Qh5 {[%clk 0:09:24.1]} 7... g6 {[%clk 0:09:30.9]} 8. Qf3 {[%clk
0:09:22.4]} 8... Nd7 {[%clk 0:09:07.4]} 9. Nxf7 {[%clk 0:09:05.3]} 9... Kxf7
{[%clk 0:09:08.1]} 10. g4 {[%clk 0:09:06.1]} 10... e6 {[%clk 0:09:07.4]} 11.
gxf5 {[%clk 0:09:04.3]} 11... exf5 {[%clk 0:09:05.6]} 12. Bc4 {[%clk 0:09:03]}
12... Nb6 {[%clk 0:08:37.4]} 13. Bb3 {[%clk 0:09:02.9]} 13... Qe7+ {[%clk
0:08:20.3]} 14. Kf1 {[%clk 0:08:54.8]} 14... Re8 {[%clk 0:08:00.9]} 15. Kg2
{[%clk 0:08:35.4]} 15... Qe2 {[%clk 0:07:19]} 16. c4 {[%clk 0:08:07]} 16... Nf6
{[%clk 0:07:09]} 17. Nc3 {[%clk 0:08:04.4]} 17... Qxf3+ {[%clk 0:07:06.1]} 18.
Kxf3 {[%clk 0:08:05.4]} 18... Bb4 {[%clk 0:06:34.2]} 19. c5+ {[%clk 0:07:50.5]}
19... Nbd5 {[%clk 0:06:33.3]} 20. Nxd5 {[%clk 0:07:49.9]} 20... Nxd5 {[%clk
0:06:26.4]} 21. Bxd5+ {[%clk 0:07:46.1]} 21... cxd5 {[%clk 0:06:27.1]} 22. Bf4
{[%clk 0:07:43.6]} 22... Re4 {[%clk 0:06:09.4]} 23. a3 {[%clk 0:07:38.3]} 23...
Ba5 {[%clk 0:06:10.4]} 24. Be5 {[%clk 0:07:36.2]} 24... Rc8 {[%clk 0:05:51.7]}
25. Rad1 {[%clk 0:07:20.8]} 25... Bc7 {[%clk 0:05:51.8]} 26. Bxc7 {[%clk
0:07:15.6]} 26... Rxc7 {[%clk 0:05:52.9]} 27. Rhe1 {[%clk 0:07:15.4]} 27... Rce7
{[%clk 0:05:45.7]} 28. Re3 {[%clk 0:07:05.6]} 28... g5 {[%clk 0:05:37.9]} 29. h3
{[%clk 0:06:26.8]} 29... h5 {[%clk 0:05:34.9]} 30. b4 {[%clk 0:04:27.4]} 30...
g4+ {[%clk 0:05:29.7]} 31. hxg4 {[%clk 0:04:27.9]} 31... hxg4+ {[%clk
0:05:29.5]} 32. Ke2 {[%clk 0:04:25.4]} 32... Rxe3+ {[%clk 0:05:12.3]} 33. fxe3
{[%clk 0:04:26.2]} 33... f4 {[%clk 0:05:13.6]} 34. Rd3 {[%clk 0:04:23.5]} 34...
Kf6 {[%clk 0:04:39.1]} 35. Kf2 {[%clk 0:04:18.6]} 35... f3 {[%clk 0:04:28]} 36.
b5 {[%clk 0:04:10.8]} 36... Rh7 {[%clk 0:03:21.3]} 37. c6 {[%clk 0:02:49.3]}
37... bxc6 {[%clk 0:03:21.3]} 38. bxc6 {[%clk 0:02:50]} 38... Rh2+ {[%clk
0:03:22.2]} 39. Kg3 {[%clk 0:02:28.5]} 39... Rg2+ {[%clk 0:03:22.1]} 40. Kh4
{[%clk 0:02:21.5]} 40... f2 {[%clk 0:02:44.1]} 41. Rd1 {[%clk 0:02:16.4]} 41...
Ke7 {[%clk 0:02:25.8]} 42. e4 {[%clk 0:01:53]} 42... Rg1 {[%clk 0:02:15.7]} 0-1